bitfinex/quotes_BTCUSD_20210101
["timestamp","ask_amount","ask_price","bid_price","bid_amount"]
[1609485002554,1.99449014,29035.0,29034.0,0.33401831]
[1609485002759,1.72449014,29035.0,29034.0,0.33401831]
[1609485002956,1.72449014,29035.0,29034.0,0.32901831]
[1609485003558,1.72449014,29035.0,29034.0,0.32401831]
[1609485003756,1.72449014,29035.0,29032.0,0.0002]
[1609485003961,1.52449014,29035.0,29031.0,0.04]
[1609485004263,0.19014714,29034.0,29031.0,0.5461]
[1609485004453,0.19014714,29034.0,29031.0,0.5411]
[1609485005296,0.19014714,29034.0,29031.0,0.5361]
[1609485005694,0.359832,29033.0,29031.0,0.5311]
[1609485005895,0.19014714,29034.0,29031.0,1.5311]
[1609485006095,0.364837,29033.0,29031.0,1.63333173]
[1609485006394,0.19034235,29032.0,29031.0,1.63333173]
[1609485006599,0.55517935,29032.0,29031.0,1.63353173]
[1609485006794,0.19034235,29032.0,29031.0,1.63353173]
[1609485007298,5.165447,29032.0,29031.0,1.11743173]
[1609485007503,6.34072656,29032.0,29031.0,1.11743173]
[1609485007795,6.34072656,29032.0,29031.0,1.0152]
[1609485007796,6.4717466,29032.0,29031.0,1.0152]
[1609485007999,6.10250868,29032.0,29031.0,1.0152]
[1609485008293,6.36097067,29032.0,29031.0,1.0152]
[1609485008499,6.61917067,29032.0,29031.0,1.0102]
[1609485008691,6.61917067,29032.0,29031.0,0.0102]
[1609485008898,6.36097067,29032.0,29031.0,0.01]
[1609485009593,6.69277369,29032.0,29031.0,0.005]
[1609485009993,6.36097067,29032.0,29031.0,0.005]
[1609485010196,7.36097067,29032.0,29031.0,0.005]
[1609485010394,3.01097067,29032.0,29031.0,0.005]
[1609485011409,2.38020859,29032.0,29031.0,0.005]
[1609485011710,2.37020859,29032.0,29031.0,0.005]
[1609485012214,4.52020859,29032.0,29031.0,0.005]
[1609485012715,4.49102004,29031.0,29027.0,0.0002]
[1609485012914,4.00538387,29028.0,29026.0,1.14]
[1609485013220,5.889839,29027.0,29026.0,0.14]
[1609485013413,5.70773444,29027.0,29026.0,0.14]
[1609485013712,2.43773444,29027.0,29026.0,0.14]
[1609485013948,1.52619643,29027.0,29026.0,0.14]
[1609485014248,1.72619643,29027.0,29026.0,0.14]
[1609485014551,1.09772559,29027.0,29026.0,0.14]
[1609485014745,2.37772559,29027.0,29026.0,0.14]
[1609485015146,3.86772559,29027.0,29026.0,0.14]
[1609485015557,0.53180302,29025.0,29014.0,1.0]
[1609485015766,0.09054687,29015.0,29014.0,1.0]
[1609485015953,0.28991687,29015.0,29014.0,1.0]
[1609485016155,1.65476387,29015.0,29014.0,0.96]
[1609485016408,2.39366089,29015.0,29014.0,0.96]
[1609485016608,0.09054687,29003.0,29002.0,0.0002]
[1609485016815,2.73180302,29002.0,29000.0,12.97165779]
[1609485017110,2.923247,29002.0,29001.0,0.0102]
[1609485017408,1.523247,29002.0,29001.0,0.0102]
[1609485017611,1.79093379,29002.0,29001.0,0.0102]
[1609485017806,2.07593379,29002.0,29001.0,0.0102]
[1609485018007,3.22593379,29002.0,29001.0,0.0102]
[1609485018208,3.3460755,29002.0,29001.0,0.0102]
[1609485018412,4.03180302,29001.0,29000.0,11.94185779]
[1609485018608,3.36165002,29001.0,29000.0,11.84185779]
[1609485018808,2.79877232,29001.0,29000.0,11.82685779]
[1609485019007,0.6319693,29001.0,29000.0,11.82685779]
[1609485019609,0.85278489,29001.0,29000.0,11.82685779]
[1609485019808,1.85278489,29001.0,29000.0,11.82685779]
[1609485020012,1.85278489,29001.0,29000.0,11.81185779]
[1609485020013,4.68588588,29001.0,29000.0,11.81185779]
[1609485020236,4.68588588,29001.0,29000.0,2.80461779]
[1609485020551,3.68180302,29000.0,28988.0,0.00075201]
[1609485020751,1.0,28988.0,28985.0,0.0008]
[1609485020948,1.0,28988.0,28976.0,0.0012]
[1609485021159,0.24675399,28975.0,28967.0,0.0004]
[1609485021457,0.24675399,28975.0,28957.0,0.001]
[1609485021458,0.06054687,28967.0,28960.0,0.0301789]
[1609485021747,0.06054687,28967.0,28961.0,0.050303]
[1609485021748,0.33180302,28965.0,28961.0,0.050303]
[1609485021944,0.93701811,28960.0,28957.0,0.001]
[1609485022146,1.74266811,28960.0,28957.0,0.001]
[1609485022343,1.74266811,28960.0,28955.0,0.001]
[1609485022344,3.62766811,28960.0,28951.0,0.01154109]
[1609485022545,0.085,28958.0,28950.0,0.59889616]
[1609485022743,0.03,28958.0,28950.0,0.45889616]
[1609485022951,1.78301329,28951.0,28950.0,0.36389616]
[1609485023150,1.77301329,28951.0,28950.0,0.2512]
[1609485023351,1.91356016,28951.0,28941.0,0.4339944]
[1609485023548,0.89497329,28950.0,28938.0,7.71437394]
[1609485023741,1.23298129,28949.0,28936.0,0.00859995]
[1609485023942,0.364892,28946.0,28936.0,0.00859995]
[1609485024140,0.55602,28940.0,28935.0,0.0004]
[1609485024350,0.08,28939.0,28933.0,0.00027993]
[1609485024543,0.08,28939.0,28931.0,0.84467993]
[1609485024744,0.0778,28939.0,28931.0,0.003]
[1609485024942,0.13298129,28938.0,28931.0,0.003]
[1609485025148,0.0778,28939.0,28931.0,0.003]
[1609485025149,0.442692,28937.0,28931.0,0.003]
[1609485025351,0.13298129,28928.0,28927.0,1.00578932]
[1609485025558,0.13298129,28928.0,28910.0,0.1004]
[1609485025779,0.13298129,28910.0,28903.0,0.0004]
[1609485025965,0.13298129,28910.0,28880.0,0.0508]
[1609485026271,0.13298129,28910.0,28891.0,3.0]
[1609485026272,0.13298129,28898.0,28891.0,3.0]
[1609485026466,0.0778,28897.0,28884.0,0.0002]
[1609485026762,0.13298129,28896.0,28878.0,0.0002]
[1609485026967,0.2778,28897.0,28873.0,0.03985313]
[1609485026968,0.12298129,28894.0,28877.0,2.7828]
[1609485027271,0.0778,28897.0,28883.0,0.01299983]
[1609485027272,0.5188,28886.0,28883.0,0.01299983]
[1609485027564,0.20078129,28885.0,28883.0,0.11715761]
[1609485027761,0.12078129,28884.0,28883.0,0.11715761]
[1609485027955,0.07720929,28884.0,28883.0,0.06215761]
[1609485028168,0.15500929,28884.0,28883.0,0.06215761]
[1609485028362,0.24224929,28878.0,28877.0,2.6676]
[1609485028663,0.6705939,28878.0,28877.0,2.65]
[1609485028885,0.5927939,28878.0,28877.0,1.3117]
[1609485029085,1.34840806,28878.0,28877.0,0.06226115]
[1609485029283,0.9376859,28878.0,28871.0,0.0032]
[1609485029493,0.05720929,28869.0,28866.0,0.0002]
[1609485029690,0.05720929,28865.0,28862.0,0.0006]
[1609485029885,0.05720929,28859.0,28856.0,0.0002]
[1609485030081,0.06836,28861.0,28852.0,0.10102345]
[1609485030394,0.2554,28845.0,28841.0,0.0044]
[1609485030586,0.2554,28845.0,28842.0,0.0002]
[1609485030884,0.15494751,28845.0,28841.0,0.1534]
[1609485031093,0.24387,28845.0,28843.0,0.1547014]
[1609485031284,0.20549445,28846.0,28844.0,3.32]
[1609485031522,0.29259,28859.0,28844.0,3.32]
[1609485031523,0.29259,28859.0,28844.0,3.255]
[1609485031721,0.2,28862.0,28848.0,0.94279071]
[1609485031922,0.16752132,28867.0,28852.0,0.94279071]
[1609485032131,0.07499104,28874.0,28844.0,3.40150103]
[1609485032132,0.07499104,28874.0,28867.0,0.93779071]
[1609485032429,0.07499104,28874.0,28870.0,0.93779071]
[1609485032430,6.548641,28873.0,28870.0,0.93779071]
[1609485032623,0.32734569,28878.0,28871.0,4.28779071]
[1609485032826,0.00365614,28908.0,28871.0,4.28779071]
[1609485032827,0.30010813,28889.0,28882.0,0.2775929]
[1609485033031,0.10365614,28908.0,28888.0,2.84462285]
[1609485033032,0.37016324,28899.0,28888.0,2.84462285]
[1609485033225,0.288307,28889.0,28888.0,2.83962285]
[1609485033731,0.136054,28906.0,28888.0,1.89203744]
[1609485033930,1.0,28904.0,28888.0,0.16779]
[1609485034132,1.0,28896.0,28881.0,0.19999868]
[1609485034332,0.09159512,28879.0,28877.0,0.4]
[1609485034528,0.60003316,28887.0,28879.0,0.36474]
[1609485034732,0.20861,28887.0,28883.0,0.36474]
[1609485034935,0.08215,28888.0,28886.0,0.36474]
[1609485035125,0.08215,28888.0,28887.0,0.56473868]
[1609485035526,0.39167986,28905.0,28887.0,0.35974]
[1609485035729,0.9995,28904.0,28888.0,0.15417732]
[1609485035928,0.36474,28903.0,28886.0,0.4]
[1609485036124,0.39167986,28903.0,28886.0,0.96467268]
[1609485036426,1.0995,28907.0,28885.0,0.4002]
[1609485036632,0.24167986,28906.0,28886.0,0.96467268]
[1609485036824,0.1,28907.0,28886.0,0.96467268]
[1609485037043,0.01,28906.0,28888.0,0.364674]
[1609485037346,0.0002,28908.0,28892.0,0.364674]
[1609485037547,0.0002,28908.0,28896.0,0.764674]
[1609485037754,0.9995,28914.0,28900.0,0.364674]
[1609485037945,1.3637893,28920.0,28900.0,0.96467268]
[1609485038146,0.08026817,28917.0,28899.0,0.4]
[1609485038347,1.3637893,28916.0,28898.0,0.4002]
[1609485038550,1.3637893,28916.0,28899.0,0.96455068]
[1609485038551,0.33180302,28915.0,28899.0,0.96455068]
[1609485038756,0.0002,28923.0,28899.0,1.14664068]
[1609485038950,0.0002,28923.0,28899.0,1.14684068]
[1609485039157,4.52e-06,28901.0,28899.0,0.946842]
[1609485039352,4.52e-06,28901.0,28900.0,1.04455068]
[1609485039542,4.52e-06,28901.0,28900.0,0.96475068]
[1609485039856,0.9945,28928.0,28902.0,0.36800814]
[1609485040040,0.9945,28927.0,28903.0,0.98647484]
[1609485040346,0.38647616,28926.0,28904.0,1.35448298]
[1609485040543,0.38647616,28926.0,28905.0,0.83492886]
[1609485040544,1.31630302,28925.0,28905.0,0.83492886]
[1609485040748,1.70277918,28924.0,28906.0,1.00226065]
[1609485041046,0.0002,28935.0,28906.0,0.99880451]
[1609485041047,0.9845,28923.0,28906.0,0.99880451]
[1609485041351,0.33180302,28928.0,28908.0,0.96455068]
[1609485041548,1.19260937,28927.0,28909.0,0.78647616]
[1609485041754,0.33200302,28935.0,28910.0,1.37462816]
[1609485041755,0.0002,28932.0,28910.0,1.37462816]
[1609485041955,0.0002,28932.0,28911.0,1.2641082]
[1609485041956,0.7714,28931.0,28911.0,1.2641082]
[1609485042250,0.08849498,28929.0,28912.0,0.764552]
[1609485042449,0.7714,28928.0,28912.0,0.364752]
[1609485042672,0.7714,28928.0,28912.0,0.764752]
[1609485042873,0.7614,28928.0,28912.0,0.998152]
[1609485043074,0.7614,28928.0,28913.0,0.5097982]
[1609485043275,0.86442164,28928.0,28914.0,0.6714772]
[1609485043479,0.99,28925.0,28914.0,0.01112408]
[1609485043675,0.364499,28924.0,28914.0,0.01112408]
[1609485043916,0.985,28923.0,28914.0,0.01112408]
[1609485044114,0.364499,28922.0,28914.0,0.01112408]
[1609485044319,0.985,28921.0,28914.0,0.17118939]
[1609485044515,0.985,28922.0,28915.0,0.364499]
[1609485044713,0.17850906,28905.0,28904.0,1.991941]
[1609485044910,0.17850906,28905.0,28904.0,2.18693968]
[1609485045104,0.15423259,28905.0,28904.0,3.68693968]
[1609485045312,0.985,28926.0,28904.0,3.3997936]
[1609485045611,0.39236896,28925.0,28905.0,0.59043302]
[1609485045809,0.985,28924.0,28906.0,0.55028624]
[1609485046008,0.39835312,28923.0,28907.0,0.00345614]
[1609485046211,0.985,28922.0,28907.0,0.31043434]
[1609485046444,0.985,28922.0,28907.0,0.3069782]
[1609485046712,0.985,28931.0,28908.0,0.51043302]
[1609485046912,0.39835312,28930.0,28908.0,0.51043302]
[1609485047211,0.985,28929.0,28908.0,0.32189897]
[1609485047408,0.40042966,28928.0,28908.0,0.00345614]
[1609485047618,0.40042966,28928.0,28909.0,0.20345482]
[1609485047810,0.975,28927.0,28909.0,0.19999868]
[1609485048015,0.40042966,28926.0,28907.0,0.24330804]
[1609485048209,1.37542966,28926.0,28907.0,0.00345614]
[1609485048433,1.37042966,28925.0,28906.0,0.24676418]
[1609485048632,0.40042966,28924.0,28906.0,0.24676418]
[1609485048834,0.0002,28932.0,28907.0,0.24330804]
[1609485049036,0.975,28931.0,28908.0,0.76140804]
[1609485049234,0.40042966,28930.0,28908.0,1.12104279]
[1609485049439,1.37542966,28930.0,28909.0,0.44676286]
[1609485049638,0.39542966,28929.0,28910.0,0.44676286]
[1609485049839,0.0002,28932.0,28910.0,0.44676286]
[1609485050146,0.0002,28932.0,28912.0,0.24330804]
[1609485050334,0.0002,28932.0,28913.0,0.24330804]
[1609485050539,0.0002,28932.0,28916.0,0.24330804]
[1609485050743,1.0898925,28933.0,28918.0,0.24330804]
[1609485051043,1.0898925,28933.0,28918.0,0.27288993]
[1609485051239,0.0946925,28933.0,28918.0,0.27288993]
[1609485051441,0.08873929,28932.0,28917.0,2.85899455]
[1609485051644,0.15055314,28932.0,28921.0,0.69943]
[1609485051842,0.08,28932.0,28921.0,0.69943]
[1609485052139,0.0002,28933.0,28921.0,0.69943]
[1609485052340,1.175,28932.0,28921.0,0.69943]
[1609485052548,1.175,28932.0,28921.0,0.5179]
[1609485052549,0.27574709,28931.0,28921.0,0.5179]
[1609485052741,0.975,28930.0,28921.0,0.5179]
[1609485052942,0.07574709,28931.0,28922.0,0.00033235]
[1609485053142,1.05010164,28930.0,28922.0,0.00033235]
[1609485053344,1.175,28929.0,28922.0,0.00053235]
[1609485053542,0.06458975,28928.0,28922.0,0.00053235]
[1609485053741,0.26458975,28928.0,28922.0,0.00053235]
[1609485053975,1.45631975,28928.0,28922.0,0.00053235]
[1609485054165,0.48131975,28928.0,28922.0,0.00053235]
[1609485054367,0.27303326,28927.0,28922.0,0.00053235]
[1609485054670,1.175,28926.0,28922.0,0.00053235]
[1609485054874,1.16,28925.0,28922.0,0.00053235]
[1609485055173,3.914535,28923.0,28922.0,0.00033235]
[1609485055373,5.93912475,28923.0,28922.0,0.00033235]
[1609485055675,0.86798398,28923.0,28903.0,0.20019868]
[1609485055978,0.2,28922.0,28919.0,0.31967]
[1609485056278,0.05232306,28922.0,28921.0,3.714529]
[1609485056471,0.05232306,28922.0,28921.0,3.72993925]
[1609485056671,3.06e-06,28922.0,28921.0,3.72993925]
[1609485056875,3.06e-06,28922.0,28921.0,3.73013925]
[1609485057073,0.46278962,28934.0,28921.0,3.73013925]
[1609485057074,0.0002,28934.0,28921.0,3.73013925]
[1609485057278,0.46851301,28935.0,28925.0,0.364482]
[1609485057477,0.46851301,28935.0,28926.0,0.37987325]
[1609485057713,0.96,28934.0,28926.0,0.37987325]
[1609485057915,0.193997,28925.0,28916.0,0.11482]
[1609485058116,4.888997,28933.0,28920.0,0.364529]
[1609485058414,1.153997,28932.0,28920.0,0.364529]
[1609485058615,0.58748249,28933.0,28924.0,0.359504]
[1609485058817,0.14248249,28933.0,28924.0,0.359504]
[1609485059042,0.62650591,28932.0,28924.0,0.559874]
[1609485059540,0.14171522,28932.0,28924.0,0.559874]
[1609485059837,0.14171522,28932.0,28931.0,0.3594]
[1609485060036,0.14171522,28932.0,28930.0,0.32843]
[1609485060238,0.14171522,28932.0,28931.0,0.359398]
[1609485060436,1.10171522,28932.0,28931.0,0.359398]
[1609485060638,0.45671522,28932.0,28931.0,0.359398]
[1609485061034,1.41671522,28932.0,28931.0,0.359398]
[1609485061339,3.91,28931.0,28923.0,0.02239129]
[1609485061574,1.153997,28930.0,28916.0,0.20019]
[1609485061779,1.153997,28929.0,28920.0,1.0]
[1609485061977,0.193997,28930.0,28920.0,1.10312204]
[1609485062178,1.0,28931.0,28920.0,1.10312204]
[1609485062379,1.153997,28930.0,28920.0,1.0]
[1609485062578,0.0025,28925.0,28920.0,0.995]
[1609485062777,0.196497,28925.0,28920.0,0.995]
[1609485063180,1.153997,28924.0,28920.0,0.995]
[1609485063381,1.153997,28923.0,28920.0,1.09977142]
[1609485063576,0.96,28922.0,28921.0,0.00030085]
[1609485063875,0.193997,28922.0,28921.0,0.00030085]
[1609485064076,0.33544541,28922.0,28921.0,0.00030085]
[1609485064274,0.14144841,28922.0,28921.0,0.00030085]
[1609485064476,0.33544541,28922.0,28921.0,0.00030085]
[1609485064677,1.29544541,28922.0,28921.0,0.00030085]
[1609485064883,2.37544541,28922.0,28921.0,0.00030085]
[1609485065679,4.503997,28921.0,28915.0,0.0002]
[1609485065990,0.96,28916.0,28912.0,0.0181]
[1609485066185,0.273997,28915.0,28904.0,0.10392838]
[1609485066485,1.28236771,28914.0,28904.0,0.10392838]
[1609485066679,1.14016192,28913.0,28904.0,0.10392838]
[1609485066987,1.85158898,28912.0,28900.0,0.2693]
[1609485067228,1.53158898,28911.0,28900.0,0.2693]
[1609485067432,1.14016192,28910.0,28900.0,0.2693]
[1609485067630,1.14016192,28909.0,28900.0,0.2693]
[1609485067828,1.14016192,28908.0,28900.0,0.2693]
[1609485068038,1.14016192,28907.0,28900.0,0.2693]
[1609485068227,0.94616492,28906.0,28900.0,0.2693]
[1609485068434,0.41692727,28906.0,28900.0,0.2693]
[1609485068635,0.14282507,28905.0,28901.0,0.05383508]
[1609485069042,0.14282507,28905.0,28901.0,0.57223508]
[1609485069236,0.14282507,28905.0,28902.0,0.41802077]
[1609485069436,0.14227517,28914.0,28901.0,0.55374869]
[1609485069642,0.14081228,28904.0,28902.0,0.115]
[1609485069948,0.51519776,28915.0,28903.0,3.51689165]
[1609485070244,0.13193923,28914.0,28909.0,0.5182]
[1609485070434,0.13193923,28914.0,28909.0,0.81990939]
[1609485070634,0.13193923,28914.0,28910.0,0.37371553]
[1609485070852,1.0,28917.0,28909.0,1.08921239]
[1609485070853,0.13220056,28916.0,28909.0,1.08921239]
[1609485071053,0.08,28926.0,28910.0,3.7334337]
[1609485071256,0.66629463,28932.0,28911.0,0.3822493]
[1609485071458,0.03585497,28935.0,28918.0,0.5179]
[1609485071459,0.91688506,28935.0,28918.0,0.5179]
[1609485071656,0.45015606,28935.0,28918.0,1.1181693]
[1609485071854,0.88976287,28922.0,28919.0,0.41571742]
[1609485072056,2.87e-06,28922.0,28919.0,0.03346812]
[1609485072257,2.87e-06,28922.0,28919.0,0.42332438]
[1609485072557,0.45015606,28935.0,28920.0,0.03346812]
[1609485072754,0.45015606,28935.0,28922.0,0.5177]
[1609485073149,0.45015606,28935.0,28923.0,0.03346812]
[1609485073651,0.45015606,28935.0,28925.0,0.2589]
[1609485073981,1.08,28934.0,28929.0,0.4977]
[1609485074181,1.364504,28933.0,28929.0,0.4977]
[1609485074379,0.364504,28933.0,28928.0,0.6903]
[1609485074580,1.3863751,28933.0,28929.0,0.007507]
[1609485074778,0.165,28932.0,28929.0,0.007507]
[1609485074979,0.28,28932.0,28929.0,0.007507]
[1609485075277,0.08,28932.0,28929.0,0.007707]
[1609485076078,0.07,28932.0,28929.0,0.0002]
[1609485076284,0.45015606,28935.0,28931.0,0.22938]
[1609485076516,0.45015606,28935.0,28932.0,0.06082]
[1609485076715,0.45015606,28935.0,28934.0,2.89096512]
[1609485077012,0.45015606,28935.0,28934.0,0.14415431]
[1609485077311,0.45015606,28935.0,28934.0,0.11068619]
[1609485077513,0.45015606,28935.0,28934.0,0.80078619]
[1609485077715,0.52015606,28935.0,28934.0,0.80078619]
[1609485078620,0.44515606,28935.0,28934.0,1.48126512]
[1609485078817,0.44515606,28935.0,28934.0,1.49146512]
[1609485079013,0.44015606,28935.0,28934.0,1.49146512]
[1609485079215,0.44015606,28935.0,28934.0,0.74146512]
[1609485079414,0.44015606,28935.0,28934.0,0.10992649]
[1609485079615,0.44015606,28935.0,28934.0,0.21377626]
[1609485079916,3.5004,28936.0,28934.0,0.21377626]
[1609485080117,0.00585861,28935.0,28934.0,0.21377626]
[1609485080316,2.07673865,28936.0,28935.0,3.3502]
[1609485080719,0.0002,28943.0,28935.0,3.38366812]
[1609485080925,0.40325258,28952.0,28936.0,3.54957]
[1609485081126,0.94196412,28953.0,28941.0,0.5176]
[1609485081329,1.0,28952.0,28942.0,0.23890812]
[1609485081521,0.1466,28953.0,28942.0,0.20564]
[1609485081922,0.1466,28953.0,28943.0,0.03346812]
[1609485082135,0.1466,28953.0,28943.0,0.03366812]
[1609485082342,1.0,28952.0,28943.0,0.0002]
[1609485082550,1.564503,28952.0,28943.0,0.0002]
[1609485082753,0.364503,28950.0,28941.0,0.0002]
[1609485082945,0.564503,28948.0,28941.0,0.0002]
[1609485083147,0.564503,28946.0,28941.0,0.0002]
[1609485083349,0.14,28945.0,28930.0,0.0002]
[1609485083647,0.39674368,28952.0,28935.0,0.03346812]
[1609485083848,1.0,28951.0,28935.0,0.24967812]
[1609485084048,0.39674368,28950.0,28937.0,0.5177]
[1609485084244,0.39674368,28951.0,28938.0,0.03346812]
[1609485084442,0.1466,28953.0,28938.0,0.03346812]
[1609485084645,1.1416,28953.0,28938.0,0.00021398]
[1609485084943,1.1416,28953.0,28939.0,0.03346812]
[1609485085248,1.365,28952.0,28939.0,0.04438302]
[1609485085543,1.165,28952.0,28939.0,0.04458302]
[1609485085745,0.17,28952.0,28940.0,0.03346812]
[1609485085947,1.1416,28953.0,28940.0,0.03366812]
[1609485086146,1.1466,28953.0,28945.0,0.70205]
[1609485086541,1.1466,28953.0,28945.0,0.70225]
[1609485086742,0.995,28952.0,28945.0,0.70225]
[1609485087645,11.1416,28953.0,28945.0,0.70225]
[1609485087867,1.39674368,28952.0,28945.0,0.70225]
[1609485088165,0.995,28951.0,28945.0,0.70225]
[1609485088370,1.359503,28951.0,28945.0,0.70225]
[1609485088566,0.995,28950.0,28945.0,0.70225]
[1609485088766,0.364503,28949.0,28945.0,0.70225]
[1609485089050,1.0,28950.0,28945.0,0.70225]
[1609485089439,0.995,28950.0,28945.0,0.70225]
[1609485090647,0.564503,28949.0,28946.0,0.01091415]
[1609485090845,2.214503,28947.0,28946.0,0.01091415]
[1609485091144,2.864503,28947.0,28946.0,0.01091415]
[1609485091345,2.359503,28947.0,28946.0,0.01091415]
[1609485091544,1.564503,28947.0,28946.0,0.01091415]
[1609485091747,1.364503,28947.0,28946.0,0.01091415]
[1609485092148,1.0,28947.0,28946.0,3.36091415]
[1609485092352,1.0,28947.0,28946.0,3.44091415]
[1609485092544,1.0,28947.0,28946.0,0.01091415]
[1609485093670,1.0,28947.0,28946.0,0.09091415]
[1609485093870,1.3834748,28951.0,28946.0,0.09091415]
[1609485094068,1.3834748,28951.0,28946.0,0.31138415]
[1609485094271,1.3834748,28951.0,28947.0,0.03346812]
[1609485094778,1.3834748,28951.0,28946.0,0.09111415]
[1609485094779,0.33,28950.0,28946.0,0.09111415]
[1609485094972,0.3784748,28951.0,28948.0,0.08]
[1609485095170,0.3784748,28951.0,28947.0,0.08040499]
[1609485095469,0.3784748,28951.0,28948.0,0.10474262]
[1609485095671,0.3784748,28951.0,28948.0,0.10494262]
[1609485096171,0.165,28950.0,28948.0,0.10494262]
[1609485096370,0.3784748,28951.0,28948.0,0.18494262]
[1609485096768,0.3784748,28951.0,28948.0,0.0802]
[1609485096972,0.3784748,28951.0,28948.0,0.17405]
[1609485096973,4.8e-06,28951.0,28948.0,0.17405]
[1609485097282,0.2197,28960.0,28950.0,0.1002]
[1609485097576,0.2197,28960.0,28951.0,0.45316542]
[1609485097770,0.2197,28960.0,28951.0,0.03346812]
[1609485098072,0.2197,28960.0,28951.0,0.45336542]
[1609485098275,0.2197,28960.0,28952.0,0.0002]
[1609485098476,0.2002,28956.0,28952.0,0.03366812]
[1609485098673,0.2002,28956.0,28952.0,0.6899]
[1609485098973,0.0002,28956.0,28952.0,0.6897]
[1609485099408,0.0002,28956.0,28952.0,0.79311218]
[1609485100002,0.2002,28956.0,28952.0,0.79311218]
[1609485100205,0.0002,28956.0,28952.0,0.79311218]
[1609485100704,0.0002,28956.0,28953.0,0.03346812]
[1609485101205,0.0002,28956.0,28953.0,0.03366812]
[1609485101703,0.0002,28956.0,28954.0,0.03366812]
[1609485101907,0.0002,28956.0,28954.0,0.0002]
[1609485102108,0.0002,28956.0,28955.0,0.0421]
[1609485102843,0.0002,28956.0,28955.0,0.21573]
[1609485103042,0.0002,28956.0,28955.0,1.66573]
[1609485103540,0.0002,28956.0,28955.0,1.67043]
[1609485104046,0.0002,28957.0,28955.0,1.75043]
[1609485104247,0.0002,28957.0,28955.0,2.30109812]
[1609485104445,0.0002,28957.0,28956.0,4.38346812]
[1609485104647,0.0002,28957.0,28956.0,4.38366812]
[1609485105245,0.0002,28957.0,28956.0,4.46366812]
[1609485105647,0.0002,28957.0,28956.0,1.11366812]
[1609485106046,0.0002,28957.0,28956.0,1.18272761]
[1609485106454,0.0002,28957.0,28956.0,1.10272761]
[1609485106649,0.0002,28957.0,28956.0,1.0002]
[1609485106849,0.0002,28957.0,28956.0,1.03366812]
[1609485107450,0.0002,28957.0,28956.0,1.0002]
[1609485107647,0.0002,28957.0,28956.0,1.10313167]
[1609485107950,0.0002,28957.0,28956.0,1.95313167]
[1609485108146,0.0002,28957.0,28956.0,1.13659979]
[1609485108474,0.0002,28957.0,28956.0,1.10313167]
[1609485109072,0.0002,28957.0,28956.0,2.59813167]
[1609485109272,0.0002,28957.0,28956.0,1.09813167]
[1609485110173,0.0002,28957.0,28956.0,0.9952]
[1609485110574,0.55309913,28957.0,28956.0,0.9952]
[1609485111877,0.54809913,28957.0,28956.0,0.9952]
[1609485112378,0.54809913,28957.0,28956.0,1.09827672]
[1609485112875,0.54809913,28957.0,28956.0,2.14827672]
[1609485113079,0.54809913,28957.0,28956.0,1.33398672]
[1609485113678,0.54809913,28957.0,28956.0,1.23091]
[1609485113979,0.54809913,28957.0,28956.0,3.33091]
[1609485114189,0.54809913,28957.0,28956.0,1.21139433]
[1609485114491,0.54309913,28957.0,28956.0,2.41139433]
[1609485114688,0.54309913,28957.0,28956.0,1.21139433]
[1609485115790,0.54309913,28957.0,28956.0,0.97568433]
[1609485116292,0.54309913,28957.0,28956.0,1.16821433]
[1609485117994,0.53654913,28957.0,28956.0,1.16821433]
[1609485118795,0.53654913,28957.0,28956.0,1.76821433]
[1609485119202,0.53654913,28957.0,28956.0,1.16821433]
[1609485119901,0.53654913,28957.0,28956.0,3.01821433]
[1609485120404,0.53654913,28957.0,28956.0,1.16821433]
[1609485120801,0.53654913,28957.0,28956.0,2.51821433]
[1609485121102,0.53654913,28957.0,28956.0,1.16821433]
[1609485121839,0.53654913,28957.0,28956.0,0.97568433]
[1609485122641,0.53654913,28957.0,28956.0,1.08915245]
[1609485122840,0.53654913,28957.0,28956.0,3.68915245]
[1609485123042,0.53654913,28957.0,28956.0,3.79664245]
[1609485123438,0.53654913,28957.0,28956.0,1.49664245]
[1609485123942,0.53654913,28957.0,28956.0,3.99664245]
[1609485124842,0.46803273,28957.0,28956.0,4.84664245]
[1609485125040,0.46803273,28957.0,28956.0,3.99664245]
[1609485125342,0.46803273,28957.0,28956.0,3.96317433]
[1609485125745,0.46803273,28957.0,28956.0,4.54664245]
[1609485125941,0.44076231,28957.0,28956.0,4.54664245]
[1609485126545,0.38880749,28957.0,28956.0,4.54664245]
[1609485126951,0.38880749,28957.0,28956.0,3.99664245]
[1609485127373,0.38880749,28957.0,28956.0,1.29664245]
[1609485127574,0.38880749,28957.0,28956.0,1.07568433]
[1609485127973,0.30481849,28957.0,28956.0,1.62568433]
[1609485128773,0.27981849,28957.0,28956.0,4.42568433]
[1609485128972,0.25860961,28957.0,28956.0,4.62568433]
[1609485129170,0.25860961,28957.0,28956.0,1.82568433]
[1609485129475,0.25860961,28957.0,28956.0,1.62568433]
[1609485129972,0.25860961,28957.0,28956.0,3.12568433]
[1609485130372,0.25860961,28957.0,28956.0,1.62568433]
[1609485130771,0.25860961,28957.0,28956.0,4.62568433]
[1609485131168,0.25360961,28957.0,28956.0,4.62568433]
[1609485131373,0.25360961,28957.0,28956.0,4.74747433]
[1609485132074,0.25360961,28957.0,28956.0,1.94747433]
[1609485132372,0.24860961,28957.0,28956.0,4.74747433]
[1609485132570,0.24860961,28957.0,28956.0,4.81042433]
[1609485132771,0.24860961,28957.0,28956.0,4.84389245]
[1609485133039,0.24860961,28957.0,28956.0,4.91431953]
[1609485133239,0.24860961,28957.0,28956.0,4.81042433]
[1609485133538,0.24860961,28957.0,28956.0,2.01042433]
[1609485133839,0.24860961,28957.0,28956.0,3.56042433]
[1609485134136,0.20989429,28957.0,28956.0,4.84389245]
[1609485134535,0.20989429,28957.0,28956.0,3.59389245]
[1609485134734,0.20989429,28957.0,28956.0,3.56042433]
[1609485135036,0.0002,28958.0,28957.0,4.4502]
[1609485135335,0.192752,28959.0,28957.0,4.49457877]
[1609485135539,0.0004,28960.0,28958.0,4.0395]
[1609485135738,0.0004,28960.0,28959.0,0.13346812]
[1609485136035,0.0004,28960.0,28959.0,1.36967812]
[1609485136236,0.0004,28960.0,28959.0,1.36987812]
[1609485136433,0.0004,28967.0,28959.0,1.36987812]
[1609485136672,0.14159769,28972.0,28959.0,1.36987812]